bitfinex-derivatives/quotes_BTCF0:USTF0_20241006
["timestamp","ask_amount","ask_price","bid_price","bid_amount"]
[1728232797887,0.15587337,62813.0,62812.0,0.02]
[1728232799995,0.51667337,62813.0,62812.0,0.02]
[1728232800598,0.41988937,62813.0,62812.0,0.02]
[1728232800821,0.03075626,62813.0,62812.0,0.083685]
[1728232802899,0.03075626,62813.0,62812.0,0.561285]
[1728232803511,0.03075626,62813.0,62812.0,0.083685]
[1728232805002,0.534476,62821.0,62812.0,0.39578785]
[1728232805003,0.47062945,62821.0,62812.0,0.39578785]
[1728232805190,0.36062945,62821.0,62818.0,0.09511921]
[1728232805397,0.29695345,62821.0,62819.0,0.18496913]
[1728232805696,0.29695345,62821.0,62820.0,0.12129213]
[1728232805892,0.32519139,62821.0,62820.0,0.12129213]
[1728232807202,0.32519139,62821.0,62820.0,0.12529213]
[1728232807702,0.32519139,62821.0,62820.0,0.18996913]
[1728232807906,0.32519139,62821.0,62820.0,0.28508834]
[1728232808702,0.29695345,62821.0,62820.0,0.18996913]
[1728232808905,0.063666,62831.0,62820.0,0.26987403]
[1728232809209,0.063666,62831.0,62826.0,0.2051192]
[1728232809414,0.063666,62831.0,62830.0,0.07924997]
[1728232809595,0.09216782,62831.0,62830.0,0.2005421]
[1728232809796,0.09216782,62831.0,62830.0,0.07924997]
[1728232810195,0.09216782,62831.0,62829.0,0.07924997]
[1728232810904,0.09916782,62831.0,62830.0,0.002]
[1728232812003,0.12991634,62831.0,62830.0,0.0015219]
[1728232812204,0.21775751,62831.0,62830.0,0.0015219]
[1728232812511,0.21775751,62831.0,62830.0,0.001]
[1728232812710,0.21575751,62831.0,62829.0,0.002]
[1728232812903,0.17568235,62830.0,62829.0,0.002]
[1728232813211,0.11858969,62830.0,62829.0,0.001]
[1728232813401,0.29225669,62830.0,62829.0,0.001]
[1728232813600,0.34934935,62830.0,62827.0,0.063669]
[1728232813896,0.17568235,62829.0,62827.0,0.063669]
[1728232814125,0.11858969,62828.0,62827.0,0.063669]
[1728232815113,0.1185907,62828.0,62827.0,0.063669]
[1728232816807,0.1185907,62828.0,62827.0,0.064669]
[1728232817310,0.1225907,62828.0,62827.0,0.063669]
[1728232817608,0.1245907,62828.0,62827.0,0.063669]
[1728232819019,0.18070076,62828.0,62827.0,0.063669]
[1728232819212,0.29929146,62828.0,62827.0,0.063669]
[1728232819898,0.1245907,62828.0,62827.0,0.063669]
[1728232820099,0.006,62828.0,62827.0,0.1112131]
[1728232823804,0.006,62828.0,62827.0,0.063669]
[1728232824014,0.4708,62846.0,62827.0,1.141149]
[1728232824201,0.00238759,62844.0,62843.0,0.063653]
[1728232824398,0.00238759,62844.0,62843.0,0.173653]
[1728232825709,0.02922985,62847.0,62843.0,0.58198224]
[1728232825917,0.06364,62856.0,62847.0,0.063649]
[1728232826100,0.06364,62856.0,62843.0,0.3608]
[1728232826101,0.06364,62856.0,62852.0,0.11]
[1728232826413,0.12188434,62853.0,62852.0,0.11]
[1728232826620,0.12188434,62853.0,62849.0,0.063647]
[1728232826912,0.11,62850.0,62845.0,0.04746194]
[1728232827106,0.11,62850.0,62844.0,0.063652]
[1728232827107,0.112,62847.0,62844.0,0.063652]
[1728232827301,0.002,62847.0,62845.0,0.063651]
[1728232827507,0.173646,62850.0,62845.0,0.063651]
[1728232827705,0.0934,62853.0,62852.0,0.063644]
[1728232827913,0.0934,62853.0,62852.0,0.173644]
[1728232828108,0.0934,62853.0,62852.0,0.174644]
[1728232829418,0.0934,62853.0,62852.0,0.064644]
[1728232830113,0.0954,62853.0,62852.0,0.065644]
[1728232831723,0.0954,62853.0,62852.0,0.002]
[1728232832607,0.68272,62853.0,62843.0,0.3608]
[1728232832813,0.11,62845.0,62844.0,0.063652]
[1728232833617,0.11,62848.0,62845.0,0.063651]
[1728232833827,0.11,62848.0,62843.0,0.3608]
[1728232833828,0.11,62848.0,62847.0,0.063649]
[1728232834014,0.2054,62853.0,62847.0,0.11]
[1728232834421,0.2034,62853.0,62847.0,0.11]
[1728232835015,0.2034,62853.0,62850.0,0.063645]
[1728232835212,0.28562016,62852.0,62846.0,0.11]
[1728232835528,0.17562016,62851.0,62849.0,0.063647]
[1728232835731,0.17562016,62850.0,62849.0,0.063647]
[1728232836023,0.11854771,62850.0,62849.0,0.063647]
[1728232837534,0.11954771,62850.0,62849.0,0.064647]
[1728232838415,0.12254771,62850.0,62849.0,0.065647]
[1728232839022,0.14065338,62850.0,62849.0,0.065647]
[1728232839315,0.12254843,62850.0,62849.0,0.065647]
[1728232839511,0.17962088,62850.0,62849.0,0.065647]
[1728232840421,0.12254843,62850.0,62849.0,0.065647]
[1728232841217,0.12255202,62850.0,62849.0,0.065647]
[1728232842216,0.004,62850.0,62849.0,0.065647]
[1728232846319,0.237646,62850.0,62849.0,0.002]
[1728232847518,0.06365,62846.0,62840.0,0.063656]
[1728232847816,0.17,62842.0,62840.0,0.063656]
[1728232848115,0.0961,62841.0,62840.0,0.063656]
[1728232849027,0.0961,62841.0,62836.0,0.06366]
[1728232849238,0.159756,62841.0,62840.0,0.001]
[1728232850330,0.18789079,62841.0,62840.0,0.001]
[1728232850633,0.18989079,62841.0,62840.0,0.001]
[1728232850827,0.19289079,62841.0,62840.0,0.002]
[1728232852737,0.55369079,62841.0,62840.0,0.002]
[1728232853033,1.63109079,62841.0,62840.0,0.002]
[1728232853240,0.063661,62835.0,62834.0,0.00238657]
[1728232853427,0.233661,62835.0,62834.0,0.00238657]
[1728232854736,0.233661,62835.0,62834.0,0.00338657]
[1728232856032,0.235661,62835.0,62834.0,0.00338657]
[1728232857337,0.41133712,62835.0,62828.0,0.19789824]
[1728232857636,0.17567612,62834.0,62828.0,0.19789824]
[1728232857841,0.17567612,62833.0,62832.0,0.063665]
[1728232860641,0.17567612,62833.0,62832.0,0.065665]
[1728232861044,0.20371861,62833.0,62832.0,0.065665]
[1728232861235,0.20371676,62833.0,62832.0,0.065665]
[1728232861933,0.43738076,62833.0,62832.0,0.002]
[1728232862134,0.91482076,62833.0,62832.0,0.002]
[1728232864431,0.91482076,62833.0,62824.0,0.0037]
[1728232864432,0.063672,62825.0,62824.0,0.0037]
[1728232864641,0.11858364,62825.0,62820.0,0.063676]
[1728232864841,0.21348364,62824.0,62820.0,0.063676]
[1728232865146,0.17567427,62823.0,62820.0,0.063676]
[1728232865340,0.17,62821.0,62816.0,0.11114294]
[1728232865540,0.06368,62817.0,62816.0,0.063681]
[1728232866141,0.23368,62817.0,62816.0,0.063681]
[1728232866545,0.23368,62817.0,62813.0,0.00238783]
[1728232866928,0.06368,62817.0,62813.0,0.00238783]
[1728232867838,0.06468,62817.0,62813.0,0.01538783]
[1728232868039,0.06468,62817.0,62815.0,0.063681]
[1728232868949,0.063683,62814.0,62813.0,0.02438783]
[1728232869455,1.502083,62814.0,62813.0,0.013]
[1728232869633,1.502083,62814.0,62808.0,0.0037]
[1728232869634,0.063688,62809.0,62808.0,0.0037]
[1728232869943,0.063688,62809.0,62804.0,0.0037]
[1728232869944,0.063692,62805.0,62804.0,0.0037]
[1728232870146,0.063693,62804.0,62800.0,0.067396]
[1728232870347,0.17,62801.0,62796.0,0.0037]
[1728232870646,0.17,62797.0,62791.0,0.05116194]
[1728232870850,0.233705,62792.0,62790.0,0.40998194]
[1728232871038,0.233705,62792.0,62785.0,0.0498505]
[1728232871236,0.233705,62792.0,62786.0,0.063711]
[1728232872142,0.233705,62792.0,62787.0,0.06371]
[1728232872335,0.2338,62796.0,62790.0,0.014]
[1728232873350,0.001,62792.0,62790.0,0.014]
[1728232874048,0.3608,62793.0,62790.0,0.014]
[1728232874443,0.424504,62793.0,62790.0,0.014]
[1728232874646,0.001,62792.0,62790.0,0.014]
[1728232875351,0.426304,62793.0,62790.0,0.014]
[1728232875650,0.3618,62793.0,62792.0,0.063705]
[1728232875874,0.001,62793.0,62792.0,0.424505]
[1728232876235,0.0037,62799.0,62792.0,1.43856]
[1728232876547,0.0037,62803.0,62801.0,0.063696]
[1728232876745,0.063689,62808.0,62801.0,0.063696]
[1728232876941,0.3645,62812.0,62799.0,0.0304]
[1728232877138,0.3645,62812.0,62804.0,0.17]
[1728232877139,0.06369,62807.0,62804.0,0.17]
[1728232877339,0.06369,62807.0,62803.0,0.063694]
[1728232878450,0.06469,62807.0,62804.0,0.008]
[1728232878835,0.063692,62805.0,62803.0,0.014]
[1728232879035,0.063692,62805.0,62803.0,0.022]
[1728232879335,0.063693,62804.0,62803.0,0.022]
[1728232879539,0.001,62807.0,62803.0,0.022]
[1728232879755,0.233692,62805.0,62804.0,0.014]
[1728232880551,0.233692,62805.0,62804.0,0.022]
[1728232881450,0.234692,62805.0,62804.0,0.022]
[1728232882161,0.234692,62805.0,62804.0,0.008]
[1728232882745,0.064692,62805.0,62804.0,0.008]
[1728232882947,0.064692,62805.0,62804.0,0.022]
[1728232886656,0.26292064,62805.0,62804.0,0.022]
[1728232887556,0.43869074,62805.0,62790.0,0.41765756]
[1728232887755,0.20621501,62794.0,62791.0,0.063706]
[1728232887962,0.11864892,62793.0,62790.0,0.41765756]
[1728232888266,0.11864892,62792.0,62791.0,0.063706]
[1728232888652,0.08788505,62792.0,62791.0,0.063706]
[1728232889860,0.08788505,62792.0,62791.0,0.077706]
[1728232890865,0.08888505,62792.0,62791.0,0.078706]
[1728232892360,0.29510006,62792.0,62791.0,0.078706]
[1728232893562,0.08888505,62792.0,62791.0,0.015]
[1728232893862,0.08888505,62792.0,62791.0,0.078706]
[1728232894162,0.14600623,62792.0,62791.0,0.078706]
[1728232894368,0.08888505,62792.0,62791.0,0.078706]
[1728232894559,0.001,62792.0,62791.0,0.078706]
[1728232897469,0.001,62792.0,62791.0,0.015]
[1728232898154,0.001,62792.0,62791.0,0.09424997]
[1728232898350,0.001,62792.0,62791.0,0.015]
[1728232898962,0.064705,62792.0,62791.0,0.015]
[1728232899164,0.128805,62792.0,62791.0,0.015]
[1728232901165,0.128805,62792.0,62787.0,0.04769459]
[1728232901372,0.17,62789.0,62788.0,0.04769189]
[1728232901666,0.063719,62779.0,62774.0,0.14297297]
[1728232901874,0.17,62777.0,62774.0,0.063723]
[1728232902060,0.233721,62777.0,62774.0,0.063723]
[1728232902256,0.17,62777.0,62774.0,0.063723]
[1728232902561,0.20877499,62776.0,62774.0,0.063723]
[1728232902759,0.087914,62775.0,62774.0,0.063723]
[1728232903367,0.087914,62775.0,62769.0,0.063728]
[1728232903567,0.12086099,62776.0,62769.0,0.063728]
[1728232903568,0.17480021,62773.0,62769.0,0.063728]
[1728232903766,0.08791488,62772.0,62770.0,0.063727]
[1728232903970,0.08791488,62771.0,62770.0,0.063727]
[1728232905568,0.08891488,62771.0,62770.0,0.063727]
[1728232906070,0.14605708,62771.0,62770.0,0.063727]
[1728232906268,0.08991488,62771.0,62770.0,0.063727]
[1728232906859,0.26452696,62771.0,62770.0,0.063727]
[1728232907071,0.08991488,62771.0,62770.0,0.063727]
[1728232908260,0.16067094,62771.0,62770.0,0.063727]
[1728232908460,0.08991488,62771.0,62770.0,0.063727]
[1728232909256,0.16065746,62771.0,62770.0,0.063727]
[1728232909668,0.17461208,62775.0,62770.0,0.2689791]
[1728232909872,0.17461208,62775.0,62772.0,0.09518906]
[1728232910058,0.17461208,62775.0,62773.0,0.12140923]
[1728232910257,0.17461208,62775.0,62774.0,0.12140923]
[1728232910458,0.23833408,62775.0,62774.0,0.12140923]
[1728232910769,0.47792,62774.0,62767.0,0.09518906]
[1728232910968,0.17,62768.0,62766.0,0.15892006]
[1728232911271,0.17,62768.0,62759.0,0.00979023]
[1728232911272,0.23373,62768.0,62767.0,0.1214254]
[1728232911658,0.23373,62768.0,62761.0,0.15892506]
[1728232911975,0.23373,62768.0,62762.0,0.21661711]
[1728232912172,0.23373,62768.0,62763.0,0.18516205]
[1728232912370,0.23473,62768.0,62764.0,0.12142805]
[1728232912576,0.23473,62768.0,62765.0,0.12142805]
[1728232912767,0.23473,62768.0,62764.0,0.063733]
[1728232913074,0.23573,62768.0,62766.0,0.001]
[1728232913667,0.23573,62768.0,62765.0,0.002]
[1728232914373,0.23573,62768.0,62766.0,0.002]
[1728232915069,0.23473,62768.0,62766.0,0.002]
[1728232915272,0.23573,62768.0,62766.0,0.002]
[1728232915772,0.23473,62768.0,62764.0,0.063733]
[1728232916075,0.23573,62768.0,62765.0,0.001]
[1728232916374,0.26305636,62768.0,62764.0,0.063733]
[1728232916561,0.26405636,62768.0,62766.0,0.001]
[1728232916964,0.26405636,62768.0,62764.0,0.064733]
[1728232917479,0.26305636,62768.0,62764.0,0.064733]
[1728232917678,0.26405636,62768.0,62764.0,0.064733]
[1728232919371,0.26405636,62768.0,62766.0,0.001]
[1728232919871,0.26305636,62768.0,62764.0,0.063733]
[1728232920079,0.26405636,62768.0,62764.0,0.064733]
[1728232920778,0.26405636,62768.0,62766.0,0.001]
[1728232921775,0.06373,62767.0,62766.0,0.001]
[1728232922478,0.063733,62765.0,62760.0,0.063737]
[1728232922675,0.063738,62760.0,62759.0,0.00239023]
[1728232924676,0.09452201,62760.0,62759.0,0.00239023]
[1728232924882,0.09652201,62760.0,62759.0,0.00239023]
[1728232926382,0.45732201,62760.0,62759.0,0.00239023]
[1728232927277,0.063739,62759.0,62756.0,0.063741]
[1728232927481,0.063741,62757.0,62756.0,0.063741]
[1728232927686,0.063745,62753.0,62749.0,0.0037]
[1728232927882,0.063745,62753.0,62747.0,0.45535]
[1728232927883,0.09453001,62752.0,62747.0,0.45535]
[1728232928082,0.03078401,62751.0,62747.0,0.42455]
[1728232928397,0.063746,62752.0,62747.0,0.42455]
[1728232928681,0.063746,62752.0,62748.0,0.063749]
[1728232928886,0.17,62753.0,62747.0,0.3608]
[1728232929088,0.03078501,62752.0,62749.0,0.17]
[1728232929389,0.03078501,62751.0,62750.0,0.063748]
[1728232929980,0.001,62752.0,62750.0,0.063748]
[1728232930184,0.0047,62760.0,62751.0,0.2001]
[1728232930486,0.0037,62760.0,62759.0,0.063739]
[1728232930681,0.02930184,62760.0,62759.0,0.063739]
[1728232930989,0.425334,62764.0,62759.0,0.063739]
[1728232931289,0.424534,62764.0,62759.0,0.063739]
[1728232931790,0.001,62760.0,62759.0,0.063739]
[1728232933295,0.39206797,62764.0,62753.0,0.2031]
[1728232933296,0.39306797,62764.0,62753.0,0.2031]
[1728232933585,0.39488797,62764.0,62754.0,0.063744]
[1728232933787,0.39488797,62764.0,62759.0,0.001]
[1728232933788,0.002,62760.0,62759.0,0.001]
[1728232934187,0.002,62760.0,62759.0,0.712738]
[1728232934584,0.02800713,62767.0,62766.0,0.063731]
[1728232934786,0.06611464,62773.0,62769.0,0.063728]
[1728232935776,0.09506385,62773.0,62769.0,0.063728]
[1728232936183,0.09606385,62773.0,62769.0,0.063728]
[1728232937093,0.09706385,62773.0,62769.0,0.064728]
[1728232937484,0.03333985,62773.0,62769.0,0.064728]
[1728232937692,0.03333985,62773.0,62769.0,0.001]
[1728232937693,0.063726,62771.0,62769.0,0.001]
[1728232937998,0.063727,62770.0,62769.0,0.001]
[1728232939397,0.063727,62770.0,62769.0,0.003]
[1728232939897,0.064727,62770.0,62769.0,0.003]
[1728232940099,0.064727,62770.0,62769.0,0.001]
[1728232940396,0.065727,62770.0,62769.0,0.003]
[1728232942690,0.002,62770.0,62769.0,0.003]
[1728232942898,0.002,62770.0,62769.0,0.066728]
[1728232947592,0.03277836,62770.0,62769.0,0.0525767]
[1728232947789,0.1207048,62770.0,62769.0,0.0525767]
[1728232948004,0.17785288,62770.0,62769.0,0.0525767]
[1728232948597,0.53865288,62770.0,62769.0,0.0525767]
[1728232950187,0.53865419,62770.0,62769.0,0.0525767]
[1728232952504,0.60238119,62770.0,62769.0,0.0525767]
[1728232953188,0.53865419,62770.0,62769.0,0.0525767]
[1728232954405,0.53865419,62770.0,62769.0,0.2225767]
[1728232954589,0.17785419,62770.0,62769.0,0.2225767]
[1728232954792,0.002,62770.0,62769.0,0.2225767]
[1728232955296,0.002,62770.0,62769.0,0.7004967]
[1728232955903,0.002,62770.0,62769.0,0.2225767]
[1728232957203,0.3608,62777.0,62776.0,0.063721]
[1728232958497,0.3618,62777.0,62776.0,0.063721]
[1728232959499,0.3628,62777.0,62776.0,0.076721]
[1728232959909,0.3618,62777.0,62776.0,0.063721]
[1728232960095,0.3628,62777.0,62776.0,0.077721]
[1728232961408,0.3618,62777.0,62776.0,0.077721]
[1728232961606,0.3628,62777.0,62776.0,0.088721]
[1728232962110,0.3618,62777.0,62776.0,0.074721]
[1728232962296,0.002,62777.0,62776.0,0.620521]
[1728232965711,0.002,62777.0,62776.0,0.652921]
[1728232967112,0.002,62777.0,62776.0,0.292121]
[1728232967305,0.002,62777.0,62776.0,0.652921]
[1728232968905,0.12067347,62777.0,62776.0,0.652921]
[1728232970509,0.002,62777.0,62776.0,0.652921]
[1728232971212,0.002,62777.0,62776.0,0.482921]
[1728232974510,0.002,62777.0,62776.0,0.592921]
[1728232977514,0.07177871,62777.0,62776.0,0.592921]
[1728232977913,0.12067325,62777.0,62776.0,0.592921]
[1728232980518,0.002,62777.0,62776.0,0.560521]
[1728232980823,0.12067564,62777.0,62776.0,0.560521]
[1728232983929,0.12067564,62777.0,62776.0,0.199721]
[1728232984226,0.07177979,62777.0,62776.0,0.199721]
[1728232984422,0.12067509,62777.0,62776.0,0.199721]
[1728232985620,0.002,62777.0,62776.0,0.136]
[1728232986321,0.002,62777.0,62776.0,0.199721]
[1728232987224,0.002,62777.0,62776.0,0.089721]
[1728232992739,0.1206742,62777.0,62776.0,0.089721]
[1728232993030,0.1206742,62777.0,62776.0,0.199721]
[1728232993534,0.1206742,62777.0,62776.0,0.173721]
[1728232993829,0.1206742,62777.0,62776.0,0.15711693]
[1728232994035,0.12067588,62777.0,62776.0,0.15711693]
[1728232994936,0.12067588,62777.0,62776.0,0.04711693]
[1728232995823,0.12067588,62777.0,62776.0,0.15711693]
[1728232998831,0.12067201,62777.0,62776.0,0.15711693]
[1728233000727,0.002,62777.0,62776.0,0.15711693]
[1728233001130,0.002,62777.0,62776.0,0.51791693]
[1728233007036,0.002,62777.0,62776.0,0.40791693]
[1728233007336,0.002,62777.0,62776.0,0.04711693]
[1728233008335,0.002,62777.0,62776.0,0.15711693]
[1728233012145,0.002,62777.0,62776.0,0.04711693]
[1728233014839,0.12067841,62777.0,62772.0,0.063725]
[1728233015039,0.11867841,62776.0,62773.0,0.11]
[1728233015245,0.11867841,62775.0,62773.0,0.173724]
[1728233015452,0.11867841,62774.0,62773.0,0.173724]
[1728233016950,0.11867841,62774.0,62773.0,0.174724]
[1728233017847,0.11967841,62774.0,62773.0,0.174724]
[1728233018145,0.12067841,62774.0,62773.0,0.175724]
[1728233018641,0.12067898,62774.0,62773.0,0.175724]
[1728233020451,0.12067898,62774.0,62773.0,0.065724]
[1728233020655,0.12067898,62774.0,62773.0,0.175724]
[1728233022753,0.002,62774.0,62773.0,0.175724]
[1728233023152,0.03030041,62774.0,62773.0,0.175724]
[1728233026752,0.03030041,62774.0,62773.0,0.065724]
[1728233029758,0.14898334,62774.0,62773.0,0.065724]
[1728233035349,0.14898334,62774.0,62773.0,0.002]
[1728233035550,0.38793646,62774.0,62773.0,0.002]
[1728233035754,0.21271073,62774.0,62773.0,0.00159078]
[1728233035957,0.26984828,62774.0,62773.0,0.00159078]
[1728233036953,0.26984828,62774.0,62773.0,0.002]
[1728233037156,0.26884828,62774.0,62773.0,0.001]
[1728233037353,0.26984828,62774.0,62773.0,0.002]
[1728233037968,0.09402341,62774.0,62773.0,0.002]
[1728233038161,1.17194341,62774.0,62773.0,0.06571693]
[1728233038350,1.17194341,62774.0,62773.0,0.002]
[1728233041164,1.53274341,62774.0,62773.0,0.002]
[1728233043466,1.53274341,62774.0,62773.0,0.04974168]
[1728233044859,0.063728,62770.0,62767.0,0.06373]
[1728233045070,0.11869912,62769.0,62767.0,0.06373]
[1728233045263,0.11869912,62768.0,62767.0,0.06373]
[1728233045969,0.063732,62766.0,62764.0,0.063733]
[1728233046166,0.22869912,62765.0,62762.0,0.3608]
[1728233046374,0.17584446,62764.0,62762.0,0.3608]
[1728233046568,0.1186998,62763.0,62762.0,0.3608]
[1728233046769,0.06979432,62763.0,62762.0,0.3608]
[1728233046961,0.1186998,62763.0,62762.0,0.3608]
[1728233047564,0.063738,62760.0,62757.0,0.0037]
[1728233047763,0.11,62758.0,62756.0,0.00239024]
[1728233048064,0.3266467,62757.0,62756.0,0.00239024]
[1728233048268,0.20880907,62757.0,62756.0,0.00239024]
[1728233049570,0.20980907,62757.0,62756.0,0.00239024]
[1728233050166,0.21080907,62757.0,62756.0,0.00339024]
[1728233051365,0.210829,62757.0,62756.0,0.00339024]
[1728233052570,0.570629,62757.0,62756.0,0.00239024]
[1728233052876,0.3628,62757.0,62756.0,0.00339024]
[1728233053377,0.002,62757.0,62756.0,0.00339024]
[1728233053567,0.3628,62757.0,62756.0,0.00339024]
[1728233053964,0.426541,62757.0,62756.0,0.00339024]
[1728233055171,0.426541,62757.0,62756.0,0.001]
[1728233055475,0.065741,62757.0,62756.0,0.001]
[1728233055774,0.426541,62757.0,62756.0,0.001]
[1728233062782,0.065741,62757.0,62756.0,0.001]
[1728233062977,0.426541,62757.0,62756.0,0.001]
[1728233066275,1.504581,62757.0,62756.0,0.001]
[1728233066892,0.934581,62757.0,62756.0,0.001]
[1728233067678,0.86984,62757.0,62750.0,0.0037]
[1728233067882,0.456541,62757.0,62756.0,0.001]
[1728233068192,0.60165124,62757.0,62756.0,0.001]
[1728233068485,1.07969124,62757.0,62756.0,0.001]
[1728233068779,1.01595024,62757.0,62756.0,0.001]
[1728233069085,1.12595024,62757.0,62756.0,0.001]
[1728233069776,1.12595024,62757.0,62749.0,0.0037]
[1728233069777,0.063748,62750.0,62749.0,0.0037]
[1728233069976,0.26169609,62750.0,62747.0,0.0328]
[1728233070182,0.31992591,62749.0,62747.0,0.0328]
[1728233070687,0.31992591,62749.0,62747.0,0.096551]
[1728233071378,0.31992591,62749.0,62747.0,0.097551]
[1728233072182,0.32092591,62749.0,62747.0,0.097551]
[1728233072488,0.08794809,62748.0,62747.0,0.097551]
[1728233072677,0.08794809,62748.0,62747.0,0.0338]
[1728233072883,0.15169809,62748.0,62747.0,0.0338]
[1728233073780,0.15269809,62748.0,62747.0,0.0328]
[1728233073985,0.15369809,62748.0,62747.0,0.0328]
[1728233074888,0.06575,62748.0,62747.0,0.0328]
[1728233075981,0.06575,62748.0,62747.0,0.09632864]
[1728233077180,0.06575,62748.0,62747.0,0.0328]
[1728233081090,0.002,62748.0,62747.0,0.096551]
[1728233081393,0.002,62748.0,62747.0,0.57880717]
[1728233081889,0.002,62748.0,62747.0,0.29759697]
[1728233082089,0.002,62748.0,62747.0,0.0328]
[1728233082289,0.002,62748.0,62747.0,0.11239348]
[1728233082699,0.002,62748.0,62747.0,0.0328]
[1728233084892,0.063751,62747.0,62745.0,0.07959348]
[1728233085101,0.173751,62747.0,62743.0,0.07959348]
[1728233085302,0.11,62747.0,62743.0,0.07959348]
[1728233085502,0.063752,62746.0,62743.0,0.07959348]
[1728233085802,0.063752,62746.0,62742.0,0.07959348]
[1728233086017,0.11,62743.0,62742.0,0.07959348]
[1728233087509,0.111,62743.0,62742.0,0.07959348]
[1728233087705,0.112,62743.0,62742.0,0.07959348]
[1728233087909,0.112,62743.0,62741.0,0.07959348]
[1728233089300,0.11,62743.0,62741.0,0.07959348]
[1728233089508,0.112,62743.0,62741.0,0.07959348]
[1728233089913,0.0879561,62742.0,62740.0,0.063758]
[1728233090607,0.112,62743.0,62739.0,0.0023905]
[1728233090608,0.14903206,62741.0,62739.0,0.0023905]
[1728233090811,0.10279006,62740.0,62739.0,0.0023905]
[1728233091510,0.15171956,62740.0,62739.0,0.0023905]
[1728233091701,0.15171956,62740.0,62733.0,0.067464]
[1728233091702,0.08796156,62740.0,62733.0,0.0037]
[1728233091895,0.08796156,62740.0,62730.0,0.3682]
[1728233091896,0.063766,62732.0,62730.0,0.3608]
[1728233092096,0.19796156,62731.0,62730.0,0.3608]
[1728233092606,0.26172856,62731.0,62730.0,0.3608]
[1728233093200,0.19796156,62731.0,62727.0,0.031]
[1728233093406,0.28500944,62728.0,62724.0,0.3645]
[1728233093706,0.08796156,62727.0,62726.0,0.173772]
[1728233094206,0.0489295,62729.0,62728.0,0.06377]
[1728233094408,0.17700944,62731.0,62728.0,0.06377]
[1728233094711,0.08797031,62730.0,62729.0,0.096769]
[1728233095806,0.08797031,62730.0,62729.0,0.033]
[1728233096709,0.08897031,62730.0,62729.0,0.033]
[1728233097099,0.08997031,62730.0,62729.0,0.033]
[1728233097910,0.07211389,62731.0,62729.0,0.15449311]
[1728233098107,0.17500944,62732.0,62730.0,0.12149311]
[1728233098412,0.17500944,62732.0,62731.0,0.12149311]
[1728233098913,0.26786875,62732.0,62731.0,0.12149311]
[1728233099208,0.26786875,62732.0,62731.0,0.20098405]
[1728233099405,0.37786875,62732.0,62731.0,0.20098405]
[1728233099610,0.37786875,62732.0,62731.0,0.07949094]
[1728233100105,0.37786875,62732.0,62731.0,0.08049094]
[1728233100106,0.37986875,62732.0,62731.0,0.08049094]
[1728233100307,0.20485931,62732.0,62731.0,0.08049094]
[1728233101310,0.20485931,62732.0,62731.0,0.001]
[1728233101912,0.20485931,62732.0,62731.0,0.08049094]
[1728233102414,0.20485931,62732.0,62731.0,0.001]
[1728233102799,0.20485931,62732.0,62731.0,0.08049094]
[1728233103011,0.20485931,62732.0,62731.0,0.001]
[1728233103322,0.063769,62729.0,62727.0,1e-08]
[1728233103609,0.063774,62724.0,62720.0,0.00979146]
[1728233103811,0.063774,62724.0,62723.0,0.12150655]
[1728233104509,0.063774,62724.0,62720.0,0.00239146]
[1728233104815,0.09407,62728.0,62721.0,0.18528344]
[1728233105005,0.09407,62728.0,62721.0,0.063777]
[1728233105207,0.11,62722.0,62721.0,0.063777]
[1728233106120,0.09407,62728.0,62727.0,0.001]
[1728233106714,0.09407,62728.0,62721.0,0.063777]
[1728233107021,0.002,62722.0,62721.0,0.064777]
[1728233107610,0.001,62722.0,62721.0,0.063777]
[1728233108306,0.001,62722.0,62721.0,0.424577]
[1728233108946,0.11,62722.0,62721.0,0.424577]
[1728233109340,0.111,62722.0,62721.0,0.425577]
[1728233109527,0.112,62722.0,62721.0,0.425577]
[1728233109735,0.175776,62722.0,62721.0,0.3618]
[1728233112132,0.20406928,62722.0,62721.0,0.3618]
[1728233112938,0.20406928,62722.0,62721.0,0.40946763]
[1728233113133,0.20406928,62722.0,62721.0,0.3618]
[1728233115838,0.20406928,62722.0,62721.0,0.40949162]
[1728233116034,0.20406928,62722.0,62721.0,0.40949191]
[1728233116236,0.20406928,62722.0,62721.0,0.3618]
[1728233117241,0.20306928,62722.0,62721.0,0.3618]
[1728233117546,0.20406928,62722.0,62721.0,0.001]
[1728233118947,0.56486928,62722.0,62721.0,0.001]
[1728233120041,0.56486928,62722.0,62714.0,0.0037]
[1728233120042,0.65286768,62722.0,62714.0,0.0037]
[1728233120248,0.11,62715.0,62713.0,0.063785]
[1728233120540,0.03905083,62714.0,62713.0,0.063785]
[1728233121249,0.08799901,62714.0,62713.0,0.063785]
[1728233121455,0.23094586,62714.0,62713.0,0.063785]
[1728233121745,0.08799336,62714.0,62713.0,0.4708]
[1728233121948,0.0390486,62714.0,62713.0,0.534585]
[1728233123045,0.0400486,62714.0,62713.0,0.534585]
[1728233123349,0.0410486,62714.0,62713.0,0.534585]
[1728233125159,0.0410486,62714.0,62713.0,0.565085]
[1728233128062,0.0410486,62714.0,62713.0,0.57659852]
[1728233128063,0.002,62714.0,62713.0,0.57659852]
[1728233128560,0.002,62714.0,62713.0,0.455085]
[1728233129264,0.112,62714.0,62713.0,0.455085]
[1728233131959,0.002,62714.0,62713.0,0.455085]
[1728233132163,0.002,62714.0,62713.0,0.68660208]
[1728233134360,0.002,62714.0,62713.0,0.57660208]
[1728233135069,0.08999215,62714.0,62713.0,0.455085]
[1728233137273,0.08999215,62714.0,62713.0,0.565085]
[1728233139559,0.08999215,62714.0,62713.0,0.455085]
[1728233142075,0.08999215,62714.0,62713.0,0.3913]
[1728233143074,0.002,62714.0,62713.0,0.51281653]
[1728233144072,0.002,62714.0,62713.0,0.15201653]